bitfinex/quotes_BTCUSD_20251024
["timestamp","ask_amount","ask_price","bid_price","bid_amount"]
[1761315937631,0.18198362,109900.0,109890.0,0.23505258]
[1761315938061,0.19498362,109900.0,109890.0,0.23505258]
[1761315938283,0.21407736,109900.0,109890.0,0.23505258]
[1761315938521,0.06382161,109900.0,109890.0,0.23505258]
[1761315938730,0.26166473,109900.0,109890.0,0.23505258]
[1761315939176,0.07968111,109900.0,109890.0,0.23505258]
[1761315939396,0.26166473,109900.0,109890.0,0.17681258]
[1761315939593,0.21407736,109900.0,109890.0,0.17681258]
[1761315939715,0.07984111,109900.0,109890.0,0.17681258]
[1761315940301,0.26182473,109900.0,109890.0,0.19371563]
[1761315940428,0.07984111,109900.0,109890.0,0.19371563]
[1761315941261,0.07984111,109900.0,109890.0,0.94919496]
[1761315941262,0.03209374,109900.0,109890.0,0.94919496]
[1761315941462,0.06396472,109900.0,109890.0,0.94919496]
[1761315942456,0.03209374,109900.0,109890.0,0.77927496]
[1761315942621,0.03209374,109900.0,109890.0,1.00707496]
[1761315942823,0.01909374,109900.0,109890.0,0.77927496]
[1761315942995,0.01909374,109900.0,109890.0,1.00707496]
[1761315943204,0.06196472,109900.0,109890.0,1.00707496]
[1761315945147,0.06196472,109900.0,109890.0,0.94859496]
[1761315945350,0.06196472,109900.0,109890.0,1.00683496]
[1761315945778,0.06196472,109900.0,109890.0,1.04301724]
[1761315946025,0.03009374,109900.0,109890.0,1.04301724]
[1761315946493,0.03187098,109910.0,109890.0,1.38301724]
[1761315946494,0.07967745,109910.0,109890.0,1.38301724]
[1761315946721,0.07967745,109920.0,109910.0,0.18196706]
[1761315946936,0.07967745,109920.0,109910.0,0.99986926]
[1761315947154,0.03187098,109920.0,109910.0,0.99990926]
[1761315947353,0.03187098,109920.0,109910.0,0.51624912]
[1761315947593,0.03187098,109920.0,109910.0,0.07514305]
[1761315947594,0.07967745,109920.0,109910.0,0.07514305]
[1761315947778,0.06356304,109920.0,109910.0,0.07514305]
[1761315948014,0.06356304,109920.0,109910.0,0.1953098]
[1761315948424,0.06356304,109920.0,109910.0,0.37727686]
[1761315948632,0.06356304,109920.0,109910.0,0.1953098]
[1761315949070,0.06356304,109920.0,109910.0,0.37727686]
[1761315949483,0.06556304,109920.0,109910.0,0.37727686]
[1761315949874,0.06556304,109920.0,109910.0,0.1953098]
[1761315950081,0.06556304,109920.0,109880.0,0.66620804]
[1761315950082,0.26761106,109920.0,109880.0,0.66620804]
[1761315950331,0.07986638,109900.0,109890.0,0.2274]
[1761315950526,0.04791983,109900.0,109890.0,0.40940018]
[1761315950726,0.07986271,109900.0,109890.0,0.98287933]
[1761315950936,0.03194288,109900.0,109890.0,0.98287933]
[1761315951888,0.07986271,109910.0,109900.0,0.18198362]
[1761315952084,0.07986271,109910.0,109900.0,0.27834998]
[1761315952338,0.04791983,109910.0,109900.0,0.76201012]
[1761315952516,0.04791983,109910.0,109900.0,0.85182913]
[1761315952716,0.12987514,109910.0,109900.0,0.76201012]
[1761315953129,0.13987514,109910.0,109900.0,0.76301012]
[1761315953562,0.09195531,109910.0,109900.0,0.76301012]
[1761315953956,0.04195531,109910.0,109900.0,0.76301012]
[1761315954582,0.08987514,109910.0,109900.0,0.09736636]
[1761315954812,0.01,109910.0,109900.0,0.50654998]
[1761315955035,0.05801828,109910.0,109900.0,0.99021012]
[1761315955183,0.05801828,109910.0,109900.0,0.98921012]
[1761315955384,0.04801828,109910.0,109900.0,0.98921012]
[1761315955583,0.08105458,109910.0,109900.0,1.39127694]
[1761315955788,0.001,109910.0,109900.0,1.42745922]
[1761315956221,0.009,109910.0,109900.0,1.61053922]
[1761315956890,0.009,109910.0,109900.0,0.99725012]
[1761315956891,0.0410363,109910.0,109900.0,0.99725012]
[1761315957083,0.07955679,109940.0,109910.0,0.18195255]
[1761315957084,0.06356304,109920.0,109910.0,0.18195255]
[1761315957342,0.06356304,109920.0,109910.0,0.27177156]
[1761315957544,0.06356304,109930.0,109920.0,0.1819505]
[1761315957664,0.06356304,109930.0,109920.0,0.44084951]
[1761315957873,0.07955679,109940.0,109920.0,0.35688759]
[1761315958083,0.07955679,109940.0,109920.0,0.35102957]
[1761315958507,0.09880032,109940.0,109920.0,0.16908]
[1761315958727,0.09928829,109940.0,109920.0,0.16908]
[1761315959071,0.0641442,109930.0,109920.0,0.34253299]
[1761315959205,0.08338773,109930.0,109920.0,0.34253299]
[1761315959404,0.08338773,109930.0,109920.0,0.34353299]
[1761315959594,0.08338773,109930.0,109920.0,0.82719313]
[1761315959795,0.01924353,109930.0,109920.0,0.82719313]
[1761315960201,0.05132404,109930.0,109920.0,0.87555875]
[1761315960458,0.05132404,109930.0,109920.0,1.37623371]
[1761315960677,0.06132404,109930.0,109920.0,0.41924694]
[1761315960896,0.06132404,109930.0,109920.0,0.28978433]
[1761315961144,0.06132404,109930.0,109920.0,0.3519105]
[1761315961145,0.02924353,109930.0,109920.0,0.3519105]
[1761315961380,0.02924353,109930.0,109920.0,0.001]
[1761315961666,0.09338773,109930.0,109920.0,0.16889211]
[1761315961913,0.08338773,109930.0,109920.0,0.16889211]
[1761315962416,0.09438773,109930.0,109920.0,0.35184261]
[1761315962638,0.03024353,109930.0,109920.0,0.35184261]
[1761315962879,0.09438773,109930.0,109920.0,0.16989211]
[1761315963108,0.03024353,109930.0,109920.0,0.96050764]
[1761315963560,0.03024353,109930.0,109920.0,0.5521706]
[1761315963812,0.03024353,109930.0,109920.0,0.53515539]
[1761315964020,0.03024353,109930.0,109920.0,1.56153049]
[1761315964437,0.011,109930.0,109920.0,1.56153049]
[1761315964691,0.00139276,109930.0,109920.0,0.12369154]
[1761315964939,0.00139276,109930.0,109920.0,1.00650219]
[1761315965163,0.00048797,109940.0,109930.0,0.18193395]
[1761315965366,0.00048797,109940.0,109930.0,0.77242855]
[1761315965584,0.00048797,109940.0,109930.0,0.27651446]
[1761315965995,0.00048797,109940.0,109930.0,0.51668841]
[1761315966225,0.00048797,109940.0,109930.0,0.28876841]
[1761315966449,0.03258964,109940.0,109930.0,0.27175296]
[1761315966679,0.02975471,109940.0,109930.0,1.0296632]
[1761315967850,0.01048797,109940.0,109930.0,1.02047538]
[1761315968084,0.01048797,109940.0,109930.0,1.36047538]
[1761315968794,0.01048797,109940.0,109930.0,1.62554861]
[1761315969493,0.00048797,109940.0,109930.0,1.62954861]
[1761315970398,0.00048797,109940.0,109930.0,0.88081524]
[1761315970622,0.00048797,109940.0,109930.0,0.9761463]
[1761315970849,0.00048797,109940.0,109930.0,1.49699967]
[1761315971084,0.00048797,109940.0,109930.0,1.91667966]
[1761315971565,0.61054083,110020.0,109930.0,1.91667966]
[1761315971566,0.0641442,110020.0,109980.0,0.18185124]
[1761315971786,0.0641442,110020.0,109990.0,0.31737901]
[1761315971787,0.03206374,110010.0,109990.0,0.31737901]
[1761315971995,0.03206374,110010.0,109990.0,0.49921151]
[1761315972415,0.25546378,110040.0,110000.0,0.18181788]
[1761315972666,0.34,110030.0,110010.0,0.16928]
[1761315972879,0.68528279,110040.0,110000.0,0.27163689]
[1761315972880,0.34528279,110040.0,110000.0,0.28072779]
[1761315973084,0.19085755,110030.0,110000.0,0.08981901]
[1761315973287,0.19085755,110030.0,110010.0,0.22748]
[1761315973498,0.012,110020.0,110000.0,0.08981901]
[1761315973704,0.62105982,110040.0,110010.0,0.2274]
[1761315973915,0.62105937,110040.0,110010.0,0.2274]
[1761315974115,0.18176913,110030.0,110010.0,0.2274]
[1761315974326,0.43021901,110040.0,110010.0,0.2274]
[1761315974548,0.61197238,110040.0,110010.0,0.40920036]
[1761315974751,0.1821523,110040.0,110010.0,0.52535519]
[1761315974969,0.1821523,110040.0,110010.0,0.34355483]
[1761315975180,0.1821523,110040.0,110010.0,0.49902063]
[1761315975397,0.0004,110040.0,110010.0,0.49902063]
[1761315975601,0.008,110030.0,110010.0,0.50002063]
[1761315976015,0.008,110030.0,110010.0,0.50102063]
[1761315976230,0.18976991,110030.0,110010.0,0.002]
[1761315976452,0.2064024,110030.0,110020.0,0.22724]
[1761315976874,0.0166338,110030.0,110020.0,0.22724]
[1761315977322,0.1984024,110030.0,110020.0,0.22724]
[1761315977541,0.0166338,110030.0,110020.0,0.22724]
[1761315977770,0.0166338,110030.0,110020.0,0.22964959]
[1761315978709,0.0166338,110030.0,110020.0,0.50125372]
[1761315979173,0.0166338,110030.0,110020.0,0.22952959]
[1761315979401,0.0166338,110030.0,110020.0,0.00240959]
[1761315979623,0.1984024,110030.0,110020.0,0.22952959]
[1761315979827,0.1984024,110030.0,110020.0,0.17128959]
[1761315980041,0.0166338,110030.0,110020.0,0.17128959]
[1761315980244,0.01662356,110030.0,110020.0,0.17228959]
[1761315980462,0.19839216,110030.0,110020.0,0.17228959]
[1761315980677,0.19839216,110030.0,110020.0,0.00340959]
[1761315980891,0.01662356,110030.0,110020.0,0.00340959]
[1761315981099,0.18215209,110040.0,110020.0,0.23044959]
[1761315981308,0.19877314,110040.0,110030.0,0.1688]
[1761315981526,0.19877314,110040.0,110030.0,0.17086518]
[1761315981732,0.01702105,110040.0,110030.0,0.17086518]
[1761315981938,0.19877314,110040.0,110030.0,0.17082518]
[1761315982746,0.19877314,110040.0,110030.0,0.17078518]
[1761315983123,0.19876907,110040.0,110030.0,0.17078518]
[1761315983461,0.19876907,110040.0,110030.0,0.00306518]
[1761315983690,0.21791097,110040.0,110030.0,0.17174518]
[1761315984050,0.30772998,110040.0,110030.0,0.17170518]
[1761315984230,0.30772998,110040.0,110030.0,0.17166518]
[1761315985464,0.30772998,110040.0,110030.0,0.17158518]
[1761315987468,0.30772998,110040.0,110030.0,0.17154518]
[1761315987671,0.21791097,110040.0,110030.0,0.17154518]
[1761315988370,0.21791031,110040.0,110030.0,0.17154518]
[1761315990425,0.30772932,110040.0,110030.0,0.00306518]
[1761315990770,0.30772932,110040.0,110030.0,0.17130518]
[1761315990972,0.64772932,110040.0,110030.0,0.17130518]
[1761315991381,0.64772932,110040.0,110030.0,0.00306518]
[1761315991631,0.69566845,110040.0,110030.0,0.00306518]
[1761315991858,2.70391158,110040.0,110030.0,0.00306518]
[1761315992066,2.70391158,110040.0,110030.0,0.16886518]
[1761315992067,0.69564717,110040.0,110030.0,0.16886518]
[1761315993570,0.64772932,110040.0,110030.0,0.16886518]
[1761315995372,0.69579156,110040.0,110030.0,0.16886518]
[1761315995781,0.69579156,110040.0,110030.0,0.00306518]
[1761315995979,0.71187352,110040.0,110030.0,0.14834518]
[1761315997266,0.1817686,110030.0,110020.0,0.101]
[1761315997470,2.76769768,110030.0,110020.0,0.101]
[1761315997793,2.78308488,110030.0,110020.0,0.101]
[1761315998593,2.85072402,110030.0,110020.0,0.1]
[1761315998784,2.85072402,110030.0,110020.0,0.101]
[1761315999148,2.90072402,110030.0,110020.0,0.101]
[1761315999562,2.82308489,110030.0,110020.0,0.101]
[1761315999770,2.72690262,110030.0,110020.0,0.101]
[1761316000006,0.72690262,110030.0,110020.0,0.101]
[1761316000997,0.7630849,110030.0,110020.0,0.101]
[1761316002777,2.85060135,110030.0,110020.0,0.101]
[1761316002999,0.18180165,110010.0,110000.0,0.158875]
[1761316003202,0.37165976,110010.0,110000.0,0.15892403]
[1761316003749,0.30737888,110010.0,110000.0,0.15892403]
[1761316004239,0.74784204,110010.0,110000.0,0.15892403]
[1761316004641,2.74784204,110010.0,110000.0,0.15892403]
[1761316004884,2.75784203,110010.0,110000.0,0.15892403]
[1761316005031,2.76784202,110010.0,110000.0,0.15892403]
[1761316005237,0.19096116,109970.0,109930.0,0.28084396]
[1761316005417,0.19096116,109970.0,109930.0,0.17968702]
[1761316005418,0.18188432,109960.0,109930.0,0.17968702]
[1761316005637,0.18188432,109960.0,109940.0,0.22568]
[1761316005638,0.21764254,109960.0,109940.0,0.22568]
[1761316005821,0.65655576,109960.0,109950.0,0.16744]
[1761316006018,0.37575822,109960.0,109950.0,0.16744]
[1761316006220,0.55764254,109960.0,109950.0,0.16744]
[1761316007044,0.37575822,109960.0,109950.0,0.16744]
[1761316007246,0.55764254,109960.0,109950.0,0.16744]
[1761316007487,0.37575822,109960.0,109950.0,0.16744]
[1761316007686,0.22308625,109980.0,109950.0,0.34934086]
[1761316007687,0.53094706,109980.0,109950.0,0.34934086]
[1761316007911,0.65673483,109980.0,109950.0,0.34934086]
[1761316008095,0.37596876,109980.0,109960.0,0.18188398]
[1761316008306,0.03596876,109980.0,109970.0,0.16736]
[1761316008607,0.03596876,109980.0,109970.0,0.16946683]
[1761316009436,0.21782,109980.0,109970.0,0.16946683]
[1761316009638,0.04096876,109980.0,109970.0,0.17046683]
[1761316009993,0.22282,109980.0,109970.0,0.17046683]
[1761316010199,0.65263901,109980.0,109970.0,0.00306683]
[1761316010820,0.64763901,109980.0,109970.0,0.00206683]
[1761316011006,2.68382129,109980.0,109970.0,0.00206683]
[1761316011280,2.69082129,109980.0,109970.0,0.00306683]
[1761316011838,2.69882129,109980.0,109970.0,0.00406683]
[1761316012047,2.69273469,109980.0,109970.0,0.00206683]
[1761316012250,2.72484873,109980.0,109970.0,0.00206683]
[1761316012453,2.72484873,109980.0,109970.0,0.00306683]
[1761316012454,2.73184873,109980.0,109970.0,0.00306683]
[1761316012658,2.75184871,109980.0,109970.0,0.00306683]
[1761316012861,2.75184871,109980.0,109970.0,1e-08]
[1761316013130,2.72448559,109980.0,109970.0,1e-08]
[1761316013461,0.18195236,109920.0,109900.0,0.0002]
[1761316013667,0.18195236,109920.0,109900.0,0.00068797]
[1761316013866,0.1819505,109920.0,109910.0,0.16728]
[1761316014068,0.19104404,109930.0,109910.0,0.16728]
[1761316014292,0.28086305,109930.0,109910.0,0.16728]
[1761316014762,0.1819505,109920.0,109910.0,0.16728]
[1761316014985,0.1819505,109920.0,109910.0,0.1672]
[1761316015263,0.1829505,109920.0,109910.0,0.1732]
[1761316015563,0.1829505,109920.0,109900.0,0.00068797]
[1761316015795,0.5229505,109920.0,109910.0,0.1732]
[1761316015999,0.5219505,109920.0,109910.0,0.006]
[1761316016211,0.61176951,109920.0,109910.0,0.006]
[1761316016429,2.61176951,109920.0,109910.0,0.006]
[1761316016652,2.66795177,109920.0,109910.0,0.006]
[1761316016874,2.68714295,109920.0,109910.0,0.006]
[1761316017309,2.67714296,109920.0,109910.0,0.006]
[1761316017531,2.65895178,109920.0,109910.0,0.01]
[1761316017748,2.64895179,109920.0,109910.0,0.004]
[1761316017988,2.66813119,109920.0,109910.0,0.004]
[1761316018207,2.65695179,109920.0,109910.0,0.005]
[1761316018426,0.52196706,109910.0,109900.0,0.00068797]
[1761316018634,0.64796835,109910.0,109900.0,0.00068797]
[1761316019302,2.64796835,109910.0,109900.0,0.00068797]
[1761316019998,2.61178607,109910.0,109900.0,0.00068797]
[1761316020233,2.64796835,109910.0,109900.0,0.00068797]
[1761316020665,2.65796834,109910.0,109900.0,0.00068797]
[1761316020874,2.66796833,109910.0,109900.0,0.00068797]
[1761316021097,2.69012843,109910.0,109900.0,0.00068797]
[1761316021523,2.67096833,109910.0,109900.0,0.00068797]
[1761316021731,2.68712441,109910.0,109900.0,0.00068797]
[1761316022150,2.67312443,109910.0,109900.0,0.00068797]
[1761316022379,2.69312441,109910.0,109900.0,0.00068797]
[1761316022599,2.70974051,109910.0,109900.0,0.00068797]
[1761316022830,2.69674053,109910.0,109900.0,0.00068797]
[1761316023044,2.67759073,109910.0,109900.0,0.00068797]
[1761316023303,2.67055316,109910.0,109900.0,0.00068797]
[1761316023521,2.71673207,109910.0,109900.0,0.00068797]
[1761316023738,2.71673207,109910.0,109900.0,1e-08]
[1761316023950,2.74407293,109910.0,109900.0,1e-08]
[1761316024175,2.73107293,109910.0,109900.0,1e-08]
[1761316024414,2.73807293,109910.0,109900.0,1e-08]
[1761316024624,2.73807293,109910.0,109900.0,0.00241351]
[1761316025044,2.74607293,109910.0,109900.0,0.00241351]
[1761316025468,2.74607293,109910.0,109900.0,1e-08]
[1761316025677,2.57816588,109900.0,109890.0,0.22379167]
[1761316025890,2.70374863,109900.0,109890.0,0.22384067]
[1761316026107,2.53200017,109890.0,109880.0,1e-08]
[1761316026347,2.53200017,109890.0,109880.0,4.902e-05]
[1761316026348,2.70376519,109890.0,109880.0,4.902e-05]
[1761316027016,2.70376519,109890.0,109850.0,0.00011884]
[1761316027017,0.55823216,109860.0,109850.0,0.00011884]
[1761316027239,0.55823216,109860.0,109850.0,0.00026591]
[1761316027240,0.64805117,109860.0,109850.0,0.00026591]
[1761316027463,0.61186889,109860.0,109850.0,0.00026591]
[1761316027899,0.64805117,109860.0,109850.0,0.00026591]
[1761316028587,0.65305117,109860.0,109850.0,0.00026591]
[1761316029924,2.65805117,109860.0,109850.0,0.00026591]
[1761316030562,2.65305117,109860.0,109850.0,0.00026591]
[1761316031209,0.62386889,109860.0,109850.0,0.00026591]
[1761316031416,0.61886889,109860.0,109850.0,0.00026591]
[1761316031837,0.61886889,109860.0,109850.0,0.00199117]
[1761316032280,0.52904988,109860.0,109850.0,0.16899117]
[1761316032491,0.61886889,109860.0,109850.0,0.16899117]
[1761316032702,0.61886889,109860.0,109850.0,0.00199117]
[1761316032907,0.66005117,109860.0,109850.0,0.00199117]
[1761316033317,0.65505117,109860.0,109850.0,0.00199117]
[1761316033550,0.64805117,109860.0,109850.0,0.00199117]
[1761316033756,0.62086889,109860.0,109850.0,0.00199117]
[1761316033971,0.65705117,109860.0,109850.0,0.00199117]
[1761316034174,0.65305117,109860.0,109850.0,0.00199117]
[1761316034379,0.66505117,109860.0,109850.0,0.00199117]
[1761316035208,0.61686889,109860.0,109850.0,0.00199117]
[1761316035412,0.52704988,109860.0,109850.0,0.00199117]
[1761316035617,0.52704988,109860.0,109850.0,0.16903117]
[1761316035618,0.345,109860.0,109850.0,0.16903117]
[1761316035827,0.19111757,109880.0,109850.0,0.3510971]
[1761316036064,0.005,109860.0,109850.0,0.37422389]
[1761316036280,0.005,109860.0,109850.0,0.16903117]
[1761316036496,0.012,109860.0,109850.0,0.00199117]
[1761316036692,0.007,109860.0,109850.0,0.22731117]
[1761316037089,0.004,109860.0,109850.0,0.22731117]
[1761316037513,0.18203513,109870.0,109850.0,0.22731117]
[1761316037732,0.18204988,109860.0,109850.0,0.00199117]
[1761316037943,0.27185414,109870.0,109850.0,0.00199117]
[1761316038150,0.003,109860.0,109850.0,0.22731117]
[1761316038891,0.007,109860.0,109850.0,0.22731117]
[1761316039319,0.004,109860.0,109850.0,0.22731117]
[1761316039536,0.08776187,109860.0,109850.0,0.22731117]
[1761316039914,0.08776187,109860.0,109850.0,0.00199117]
[1761316040136,0.08776187,109860.0,109850.0,0.22758417]
[1761316040341,0.09076187,109860.0,109850.0,0.00226417]
[1761316040541,0.09076187,109860.0,109850.0,0.22758417]
[1761316040947,0.27281175,109860.0,109850.0,0.22758417]
[1761316041516,0.09076187,109860.0,109850.0,0.22758417]
[1761316041719,0.12266427,109860.0,109850.0,0.22758417]
[1761316041923,0.27281175,109860.0,109850.0,0.00226417]
[1761316042096,0.09076187,109860.0,109850.0,0.22758417]
[1761316042329,0.09076187,109860.0,109850.0,0.00226417]
[1761316042534,0.09076187,109860.0,109850.0,0.16930417]
[1761316043357,0.09076187,109860.0,109850.0,0.35137062]
[1761316043535,0.12267457,109860.0,109850.0,0.44118963]
[1761316043975,0.04273556,109860.0,109850.0,0.44118963]
[1761316044397,0.07464826,109860.0,109850.0,0.44118963]
[1761316044603,0.04273556,109860.0,109850.0,0.44118963]
[1761316044808,0.04273556,109860.0,109850.0,0.92657346]
[1761316045011,0.04273556,109860.0,109850.0,0.44118963]
[1761316045627,0.07467052,109860.0,109850.0,0.49946963]
[1761316045833,0.07467052,109860.0,109850.0,0.49942963]
[1761316046255,0.04275782,109860.0,109850.0,0.49942963]
[1761316046779,0.07467052,109860.0,109850.0,0.49942963]
[1761316047579,0.06467052,109860.0,109850.0,0.49942963]
[1761316048498,0.06467052,109860.0,109850.0,0.09208318]
[1761316048710,0.26283401,109860.0,109850.0,0.00226417]
[1761316048926,0.60283401,109860.0,109850.0,0.16926417]
[1761316049120,0.60283401,109860.0,109850.0,0.12008116]
[1761316049121,0.61908858,109860.0,109850.0,0.12008116]
[1761316049316,0.61908858,109860.0,109850.0,0.167]
[1761316049743,0.37275782,109860.0,109850.0,0.1103239]
[1761316049946,0.45263344,109860.0,109850.0,0.27529035]
[1761316050167,0.11263344,109860.0,109850.0,0.27529035]
[1761316050590,0.06470805,109860.0,109850.0,0.36510936]
[1761316050796,0.03275782,109860.0,109850.0,0.36510936]
[1761316051787,0.37275782,109860.0,109850.0,0.08981901]
[1761316051942,0.45263276,109860.0,109850.0,0.08981901]
[1761316052159,0.60273246,109860.0,109840.0,0.06228]
[1761316052361,0.07989673,109850.0,109840.0,0.2444522]
[1761316052579,0.09652431,109850.0,109840.0,0.4114522]
[1761316052763,0.0485996,109850.0,109840.0,0.4114522]
[1761316054222,0.0505996,109850.0,109840.0,0.4114522]
[1761316054426,0.0505996,109850.0,109840.0,0.50127121]
[1761316054980,0.0535996,109850.0,109840.0,0.50127121]
[1761316055732,0.0319696,109860.0,109840.0,0.50127121]
[1761316055937,0.0319696,109860.0,109850.0,0.08981901]
[1761316056137,0.0319696,109860.0,109850.0,0.27188546]
[1761316056686,0.0319696,109860.0,109850.0,0.35466359]
[1761316056887,0.0319696,109860.0,109850.0,0.27188546]
[1761316057091,0.0319696,109860.0,109850.0,0.08981901]
[1761316057305,0.0349696,109860.0,109850.0,0.25681901]
[1761316057512,0.0349696,109860.0,109850.0,0.49716546]
[1761316057667,0.0349696,109860.0,109850.0,0.08981901]
[1761316057870,0.0349696,109860.0,109850.0,0.49716546]
[1761316058098,0.0349696,109860.0,109850.0,0.31509901]
[1761316058302,0.18505008,109860.0,109840.0,0.06271433]
[1761316058504,0.18505008,109860.0,109840.0,0.00443433]
[1761316058505,0.18206645,109850.0,109840.0,0.00443433]
[1761316058661,0.27786909,109860.0,109840.0,0.17143433]
[1761316058865,0.18206645,109850.0,109840.0,0.17143433]
[1761316059087,0.08981901,109850.0,109840.0,0.00443433]
[1761316059373,0.27188546,109850.0,109840.0,0.00443433]
[1761316059572,0.18208302,109840.0,109830.0,0.06184]
[1761316059774,0.18208302,109840.0,109830.0,0.00013366]
[1761316059775,0.63107917,109840.0,109830.0,0.00013366]
[1761316059975,0.63107917,109840.0,109830.0,0.03045366]
[1761316060785,0.63107917,109840.0,109830.0,0.16709366]
[1761316062045,0.63907917,109840.0,109830.0,0.00113366]
[1761316062259,0.63907917,109840.0,109830.0,0.00013366]
[1761316062470,0.63907917,109840.0,109810.0,0.00115927]
[1761316062471,0.52211619,109820.0,109810.0,0.00115927]
[1761316062677,0.63111234,109820.0,109810.0,0.0016501]
[1761316063427,0.6401884,109820.0,109810.0,0.0016501]
[1761316063639,2.67637068,109820.0,109810.0,0.0016501]
[1761316063839,2.69237067,109820.0,109810.0,0.0026501]
[1761316064268,2.69237067,109820.0,109780.0,0.23699571]
[1761316064269,0.34,109790.0,109780.0,0.23699571]
[1761316064482,0.70237066,109820.0,109800.0,0.05828]
[1761316064483,0.01507606,109820.0,109800.0,0.05828]
[1761316064691,0.02511393,109820.0,109810.0,0.167]
[1761316064894,0.18213277,109810.0,109800.0,0.16708]
[1761316065096,0.35911393,109810.0,109800.0,0.16708]
[1761316065276,0.01911393,109810.0,109800.0,0.16708]
[1761316065503,0.20123062,109820.0,109800.0,0.16708]
[1761316065708,0.01911393,109820.0,109800.0,0.34922847]
[1761316065884,0.02211393,109820.0,109800.0,0.43904748]
[1761316066043,0.001,109810.0,109800.0,0.43904748]
[1761316066256,0.02011393,109810.0,109800.0,0.49732748]
[1761316066653,0.02011393,109810.0,109800.0,0.16716]
[1761316066875,0.01911393,109810.0,109800.0,0.22544]
[1761316067039,0.01911393,109810.0,109800.0,0.40758936]
[1761316067243,0.20223118,109820.0,109790.0,0.19126952]
[1761316067543,0.20223118,109820.0,109800.0,0.40758786]
[1761316067544,0.02411393,109820.0,109800.0,0.40758786]
[1761316067741,0.32176267,109820.0,109790.0,0.1821615]
[1761316067945,0.32176267,109820.0,109800.0,0.2254]
[1761316068167,0.32176267,109820.0,109800.0,0.53902926]
[1761316068168,0.03671621,109820.0,109800.0,0.53902926]
[1761316068371,0.03571621,109820.0,109800.0,0.53902926]
[1761316068521,0.003,109810.0,109800.0,0.27196228]
[1761316068741,0.02311393,109810.0,109800.0,0.49752228]
[1761316068955,0.03571621,109810.0,109800.0,0.49752228]
[1761316069533,0.03571621,109810.0,109800.0,0.43920228]
[1761316069752,0.03571621,109810.0,109800.0,0.56052949]
[1761316069970,0.03671621,109810.0,109800.0,0.98286611]
[1761316070167,0.01760228,109810.0,109800.0,0.98286611]
[1761316070713,0.01760228,109810.0,109800.0,0.49886349]
[1761316071022,0.01760228,109810.0,109800.0,0.98424732]
[1761316071226,0.02062021,109810.0,109800.0,0.27334349]
[1761316071436,0.03976391,109810.0,109800.0,0.49882349]
[1761316071634,0.02062021,109810.0,109800.0,0.75872732]
[1761316071841,0.004,109810.0,109800.0,1.0574558]
[1761316072047,0.004,109810.0,109800.0,0.9991358]
[1761316072243,0.004,109810.0,109800.0,1.2396158]
[1761316073454,0.001,109810.0,109800.0,1.2396158]
[1761316073688,0.34,109850.0,109800.0,1.2396158]
[1761316073967,0.34,109850.0,109830.0,0.08981901]
[1761316073968,0.37577673,109850.0,109830.0,0.08981901]
[1761316074189,0.37577673,109850.0,109830.0,0.09880091]
[1761316074644,0.37577673,109850.0,109840.0,0.18208302]
[1761316074850,0.03577673,109850.0,109840.0,0.75728586]
[1761316075093,0.03577673,109850.0,109840.0,0.98292586]
[1761316075330,0.03926472,109850.0,109840.0,1.07274487]
[1761316075765,0.04026472,109850.0,109840.0,1.07274487]
[1761316076220,0.04786643,109870.0,109860.0,0.18204988]
[1761316076464,0.04786643,109880.0,109870.0,0.18203331]
[1761316076681,0.04786643,109890.0,109880.0,0.18201674]
[1761316076916,0.06449345,109890.0,109880.0,0.92465958]
[1761316077148,0.01662702,109890.0,109880.0,0.92465958]
[1761316077368,0.01662702,109890.0,109880.0,0.98293958]
[1761316077594,0.01662702,109890.0,109880.0,0.75721958]
[1761316077826,0.01662702,109890.0,109880.0,1.07275859]
[1761316078546,0.01662702,109890.0,109880.0,0.58737476]
[1761316078824,0.01662702,109890.0,109880.0,0.58837476]
[1761316079093,0.04786643,109900.0,109880.0,1.07375859]
[1761316079366,0.04786643,109900.0,109890.0,0.77401773]
[1761316079641,0.04786643,109900.0,109890.0,0.3616382]
[1761316079927,0.05066344,109910.0,109900.0,0.18198362]
[1761316080220,0.05066344,109910.0,109900.0,0.92446646]
[1761316080441,0.05066344,109910.0,109900.0,0.43908263]
[1761316080683,0.05066344,109910.0,109880.0,0.01010083]
[1761316080684,0.2326305,109910.0,109880.0,0.01010083]
[1761316080923,0.23184319,109900.0,109890.0,0.16732]
[1761316081167,0.002,109900.0,109890.0,0.16732]
[1761316081374,0.04885745,109900.0,109890.0,0.16732]
[1761316081652,0.04785745,109900.0,109890.0,0.16732]
[1761316082685,0.05085745,109900.0,109890.0,0.16752]
[1761316082906,0.05085745,109900.0,109890.0,0.2258]
[1761316083282,0.05385745,109900.0,109890.0,0.2258]
[1761316083636,0.23284107,109900.0,109890.0,0.2258]
[1761316083839,0.05085745,109900.0,109890.0,0.2258]
[1761316084048,0.05385745,109900.0,109890.0,0.2258]
[1761316084257,0.05385745,109900.0,109890.0,0.49761919]
[1761316084461,0.006,109900.0,109890.0,0.56558265]
[1761316084680,0.007,109900.0,109890.0,0.49761919]
[1761316084891,0.05485745,109900.0,109890.0,0.49761919]
[1761316085120,0.007,109900.0,109890.0,0.49761919]
[1761316085540,0.007,109900.0,109890.0,0.31561901]
[1761316085747,0.03888477,109900.0,109890.0,0.08981901]
[1761316085953,0.07974222,109900.0,109890.0,0.31541901]
[1761316086153,0.26172613,109900.0,109880.0,0.18201516]
[1761316086376,0.08174222,109900.0,109890.0,0.2256]
[1761316086628,0.26372584,109900.0,109890.0,0.2256]
[1761316086755,0.26172584,109900.0,109890.0,0.2256]
[1761316086959,0.07974222,109900.0,109890.0,0.2256]
[1761316087163,0.26172734,109900.0,109880.0,0.27183417]
[1761316087371,0.26172734,109900.0,109890.0,0.22552]
[1761316087588,0.07974222,109900.0,109890.0,0.22552]
[1761316087805,0.08574222,109900.0,109880.0,0.27183417]
[1761316088012,0.08574222,109900.0,109890.0,0.22544]
[1761316088449,0.28985098,109900.0,109890.0,0.22544]
[1761316088851,0.28985098,109900.0,109880.0,0.27183536]
[1761316089081,0.10486736,109900.0,109890.0,0.16712]
[1761316089257,0.10786736,109900.0,109890.0,0.16712]
[1761316089746,0.28685098,109900.0,109890.0,0.22536]
[1761316090221,0.10186736,109900.0,109890.0,0.22536]
[1761316090431,0.10186736,109900.0,109880.0,0.27183536]
[1761316090617,0.10186736,109900.0,109890.0,0.40732018]
[1761316090826,0.10186736,109900.0,109880.0,0.36165437]
[1761316090990,0.10486736,109900.0,109890.0,0.40728018]
[1761316091200,0.10186736,109900.0,109890.0,0.40728018]
[1761316091391,0.05400991,109900.0,109890.0,0.49709919]
[1761316091794,0.05400991,109900.0,109890.0,0.51471]
[1761316092021,0.02212514,109900.0,109890.0,0.51471]
[1761316092221,0.02512514,109900.0,109890.0,0.51471]
[1761316092625,0.02812514,109900.0,109890.0,0.51471]
[1761316093059,0.02512514,109900.0,109890.0,0.49709919]